Cogmind - Beta 15 @@@ ROGUE MODE // 2025.08.25 @ 15:39:00 Player: Mogwok Wargfriend Result: Destroyed by 1I-EKL(R) with Subdweller Machine Gun Performance ------------- Evolutions (0) 0 Regions Visited (2) 400 Robots Destroyed (52) 260 Value Destroyed (857) 857 Prototype IDs (0) 0 Alien Tech Used (0) 0 Bonus (0) 0 TOTAL SCORE: 1517 Bonus ------- None Cogmind --------- Core Integrity 0/250 Matter 284/300 Energy 122/125 System Corruption 0% Temperature Cool (1) Movement Rolling (110) Ox2 Location -10/Subcaves Parts ------- > --- POWER (1) -------- Light Ion Engine > --- PROPULSION (2) --- Wheel Wheel > --- UTILITY (2) ------ High-capacity Storage Unit Improved Targeting Computer > --- WEAPON (2) ------- Beam Cannon Autogun > --- INVENTORY (20) --- Light Ion Engine Light Treads Light Treads Light Treads Wheel Wheel Compact Wheel Compact Wheel Subdweller Monowheel High-capacity Matter Pod (200) Sensor Array Particle Gun Assault Rifle Autogun Autogun Autogun Grenade Launcher Datajack Mining Laser Peak State ------------ > --- POWER ------------ Light Ion Engine > --- PROPULSION ------- Wheel Wheel > --- UTILITY ---------- High-capacity Storage Unit Improved Terrain Scanner > --- WEAPON ----------- Shotgun Shotgun > --- INVENTORY -------- Light Ion Engine Light Ion Engine Light Treads Aluminum Leg Wheel Wheel Compact Wheel Compact Wheel Compact Wheel Compact Wheel Small Matter Pod Structural Scanner Sensor Array Small Laser Small Laser Particle Gun Assault Rifle Grenade Launcher Datajack [Rating: 13] Favorites ----------- Power Light Ion Engine Engine Light Ion Engine Propulsion Wheel Treads Light Treads Wheel Wheel Utility High-capacity Storage Unit Device Improved Terrain Scanner Storage High-capacity Storage Unit Processor Improved Targeting Computer Protection Light Armor Plating Weapon Autogun Energy Gun Small Laser Energy Cannon Beam Cannon Ballistic Gun Autogun Launcher Grenade Launcher Special Weapon Mining Laser Build | -11 -10 -10 ------- Run | Yrd Mat Sub Slots Evolved . | . . . Power . | . . . Propulsion . | . . . Utility . | . . . Weapon . | . . . Parts Attached 27 | 7 16 4 Power 5 | 1 3 1 Engine 5 | 1 3 1 Core . | . . . Reactor . | . . . Propulsion 7 | 2 5 . Treads 1 | 1 . . Leg . | . . . Wheel 6 | 1 5 . Hover . | . . . Flight . | . . . Utility 5 | 2 2 1 Device 1 | 1 . . Storage 2 | 1 1 . Processor 1 | . . 1 Hackware . | . . . Protection 1 | . 1 . Artifact . | . . . Weapon 10 | 2 6 2 Energy Gun 2 | 1 1 . Energy Cannon 1 | . . 1 Ballistic Gun 5 | 1 4 . Ballistic Cannon . | . . . Launcher 1 | . 1 . Special Weapon 1 | . . 1 Impact Weapon . | . . . Slashing Weapon . | . . . Piercing Weapon . | . . . Special Melee Weapon . | . . . Unidentified Prototypes . | . . . Parts Lost 7 | . 5 2 Power 3 | . 2 1 Propulsion 2 | . 2 . Utility 1 | . . 1 Weapon 1 | . 1 . Highest Loss Streak 5 | . 5 2 To Critical Strikes . | . . . Average Backups 17 | 4 16 19 Power 1 | . 1 1 Propulsion 6 | 2 6 7 Utility 2 | . 2 2 Weapon 5 | . 4 7 Tool/Special . | . . . Unused Backups 23 | . 8 15 Power 1 | . . 1 Propulsion 11 | . 3 8 Utility 4 | . 2 2 Weapon 6 | . 3 3 Tool/Special 1 | . . 1 Average Slot Usage (%) 99 | . 99 99 Engine 13 | . 13 13 Treads 2 | . 4 . Wheel 25 | . 23 28 Device 4 | . 8 . Storage 14 | . 14 14 Processor 2 | . . 4 Protection 7 | . 6 9 Energy Gun 3 | . 6 . Energy Cannon 2 | . . 4 Ballistic Gun 17 | . 19 16 Launcher 1 | . 2 1 Special Weapon 2 | . . 5 Peak Build Rating 13 | 9 13 11 Average Rating 10 | 6 10 10 On Entrance 6 | . 9 11 Naked Turns . | . . . Heaviest Build 52 | 13 52 52 Greatest Support 20 | 10 20 20 Greatest Overweight (x) 5 | 1 5 2 Average Overweight (x) 2 | . 2 2 Largest Inventory Capacity 20 | 8 20 20 Average Capacity 19 | 7 19 20 Most Carried 20 | 7 20 20 Average Carried 17 | 4 16 19 Final Capacity 20 | 8 20 20 Final Carried 20 | 7 20 19 Class Distribution -------------------- 88% | Mutant 11% | Scavenger-Mutant Dominant Class ---------------- Mutant | -10/Materials Mutant | -10/Subcaves Resources | -11 -10 -10 ----------- Run | Yrd Mat Sub Matter Collected 1546 | 366 806 374 Remotely . | . . . Salvage Created 1592 | 210 938 444 Parts 106 | 10 63 33 Haulers Intercepted 2 | . 2 . Recyclers Shooed 5 | . 5 . Parts Field Recycled . | . . . Retrieved Matter . | . . . Parts Self-Destructed 13 | . . 13 Prevented . | . . . Kills | -11 -10 -10 ------- Run | Yrd Mat Sub Combat Hostiles Destroyed 21 | . 13 8 Guns 12 | . 8 4 Cannons 2 | . . 2 AOE 7 | . 5 2 Classes Destroyed 11 | 3 6 2 Worker 10 | 2 8 . Builder 5 | . 5 . Tunneler 5 | 4 1 . Hauler 2 | . 2 . Recycler 4 | 1 3 . Operator 2 | . 2 . Watcher 3 | . 3 . Swarmer 5 | . 5 . Grunt 10 | . 8 2 Artisan 1 | . . 1 Subdweller 6 | . . 6 Best Kill Streak 10 | 6 10 2 Combat Bots Only 4 | . 4 2 Max Kills in Single Turn 3 | 1 3 1 Gunslinging . | . . . Exploded 2 | . 2 1 Melee . | . . . Uniques/NPCs Destroyed . | . . . Combat | -11 -10 -10 -------- Run | Yrd Mat Sub Hostile Shots Fired 105 | . 87 18 Missed 29 | . 21 8 Hits 76 | . 66 10 Projectile 76 | . 66 10 Critical Strikes 1 | . 1 . Damage Taken 1059 | . 884 175 Core 266 | . 205 61 Absorbed by Shields . | . . . Regen/Repaired (Parts) 120 | . 120 . Core Remaining (%) 100 | 100 . . Volleys Fired 281 | 20 98 163 Largest 2 | 2 2 2 Hottest 123 | 70 70 123 Shots Fired 425 | 40 195 190 Gun 284 | 40 184 60 Cannon 19 | . . 19 Launcher 15 | . 11 4 Special 107 | . . 107 Kinetic 185 | 20 105 60 Thermal 225 | 20 79 126 Explosive 15 | . 11 4 Electromagnetic . | . . . Robot Hit Streak 19 | 4 13 19 Robot Miss Streak 6 | 4 6 4 Penetration Max . | . . . Secondary Targets 2 | . 2 . Max Gunslinging Chain 1 | . 1 . Shots Hit Robots 205 | 19 125 61 Core Hits 82 | 8 53 21 Critical Kills . | . . . Critical Parts Destroyed 1 | . 1 . Critical Strikes 6 | . 6 . Burn 5 | . 5 . Destroy 1 | . 1 . Melee Attacks . | . . . Impact . | . . . Slashing . | . . . Piercing . | . . . Sneak Attacks . | . . . Combat Hostiles . | . . . Follow-up Attacks . | . . . Damage Inflicted 3539 | 240 2185 1114 Guns 2469 | 240 1502 727 Cannons 159 | . . 159 Explosions 911 | . 683 228 Melee . | . . . Ramming . | . . . Kinetic 1725 | 88 910 727 Thermal 903 | 152 592 159 Explosive 911 | . 683 228 Electromagnetic . | . . . Impact . | . . . Slashing . | . . . Piercing . | . . . Highest Corruption . | . . . Average Corruption . | . . . Corruption Purged . | . . . Corruption Blocked . | . . . Overload Shots . | . . . Overflow Damage 15 | . 15 . Projectiles . | . . . Explosions 15 | . 15 . Melee . | . . . Knockbacks . | . . . Impact . | . . . Kinetic . | . . . Secondary . | . . . Self-Inflicted Damage 114 | . 114 . Shots 8 | . 8 . Rammed . | . . . Targets Rammed . | . . . Kicked . | . . . Crushed . | . . . Highest Temperature 157 | 72 157 8 Average Temperature 41 | 33 47 4 Received Heat Transfer 423 | . 396 27 Siege Activations . | . . . Martial Activations . | . . . Shielding Activations . | . . . Robots Disrupted . | . . . Combat Hostiles . | . . . Robots Corrupted . | . . . Combat Hostiles . | . . . Parts Fried . | . . . Impact Corruptions . | . . . Robots Melted . | . . . Combat Hostiles . | . . . Parts Melted 5 | 3 2 . Heat Transferred 2710 | 444 1933 333 Parts Sabotaged . | . . . Parts Stolen . | . . . Parts Stripped . | . . . Power Chain Reactions . | . . . Alert | -11 -10 -10 ------- Run | Yrd Mat Sub Maximum Alert Level . | . . . Low Security (%) 100 | 100 100 . Level 1 . | . . . Level 2 . | . . . Level 3 . | . . . Level 4 . | . . . Level 5 . | . . . High Security . | . . . Max Security . | . . . Peak Influence 170 | 10 170 . Initial . | . . . Average 47 | 2 52 . Influence Increases 606 | 35 521 50 Destroy 0b10 Robot/C 300 | . 260 40 Destroy 0b10 Robot/NC 155 | 35 120 . Destroy Leader 70 | . 60 10 Successful Hack 26 | . 26 . Disable Machine 15 | . 15 . Destroy Structure 25 | . 25 . Lose Combat Pursuer 15 | . 15 . Influence Decreases 606 | 35 474 97 Entered New Map 23 | . . 23 Time Decay 553 | 35 444 74 Lost Part 30 | . 30 . Squads Dispatched 2 | . 2 . Investigation . | . . . Extermination . | . . . Reinforcement 2 | . 2 . Assault . | . . . Garrison . | . . . Intercept . | . . . Searches Triggered . | . . . Construction Impeded . | . . . Haulers Reinforced . | . . . Active Scanning Responses . | . . . Cargo Convoy Interrupts . | . . . Stealth | -11 -10 -10 --------- Run | Yrd Mat Sub Distress Signals 2 | . 2 . Communications Jammed . | . . . Distress Signals . | . . . Times Spotted 32 | . 24 8 Peak Tracking Total 6 | . 6 2 Tactical Retreats 1 | . 1 . Traps | -11 -10 -10 ------- Run | Yrd Mat Sub Traps Triggered . | . . . Indirectly . | . . . Trap Hack Attempts . | . . . Triggered . | . . . Disarmed . | . . . Reprogrammed . | . . . Reused . | . . . Traps Extracted . | . . . Installed . | . . . Triggered . | . . . Machines | -11 -10 -10 ---------- Run | Yrd Mat Sub Machines Disabled 1 | . 1 . Max in Single Turn 1 | . 1 . Machines Repaired . | . . . Machines Dismantled . | . . . Machines Sabotaged . | . . . Overloaded Fab Kills . | . . . Hacking | -11 -10 -10 --------- Run | Yrd Mat Sub Machines Accessed 9 | . 9 . Terminals 6 | . 6 . Fabricators . | . . . Repair Stations 1 | . 1 . Recycling Units 2 | . 2 . Scanalyzers . | . . . Garrison Access . | . . . Total Hacks 24 | . 24 . Successful 17 | . 17 . Failed 7 | . 7 . Catastrophic . | . . . Database Lockouts . | . . . Manual 12 | . 12 . Terminals 14 | . 14 . Fabricators . | . . . Repair Stations 4 | . 4 . Recycling Units 6 | . 6 . Scanalyzers . | . . . Garrison Access . | . . . Terminal Hacks 3 | . 3 . Robot Analysis 1 | . 1 . Alert Level 1 | . 1 . Locate Traps 1 | . 1 . Fabricator Hacks . | . . . Repair Station Hacks 4 | . 4 . Scan Component 2 | . 2 . Repair 2 | . 2 . Recycling Unit Hacks 4 | . 4 . Report Inventory 2 | . 2 . Retrieve Components 2 | . 2 . Scanalyzer . | . . . Garrison Access Hacks . | . . . Unauthorized Hacks 6 | . 6 . Terminals 4 | . 4 . Botnet 4 | . 4 . Fabricators . | . . . Repair Stations . | . . . Recycling Units 2 | . 2 . Reject 2 | . 2 . Scanalyzers . | . . . Garrison Access . | . . . Data Cores Recovered . | . . . Used . | . . . Hacking Detections 8 | . 8 . Full Trace Events . | . . . Feedback Events . | . . . Feedback Blocked . | . . . Robot Schematics Acquired . | . . . Robots Built . | . . . Authchips . | . . . Time . | . . . Total Robot Build Rating . | . . . Part Schematics Acquired . | . . . Parts Built . | . . . Authchips . | . . . Time . | . . . Total Part Build Rating . | . . . Parts Repaired 2 | . 2 . Time 52 | . 52 . Parts Recycled . | . . . Recycled Matter . | . . . Retrieved Matter . | . . . Retrieved Components 11 | . 11 . Parts Scanalyzed . | . . . Part Schematics Acquired . | . . . Parts Damaged . | . . . Bothacking | -11 -10 -10 ------------ Run | Yrd Mat Sub Used RIF Installer . | . . . Robots Hacked . | . . . Non-combat . | . . . Combat . | . . . Robot Hacks Applied . | . . . Relay Couplers Released . | . . . Fabnet Peak Effective % . | . . . Robots Rewired . | . . . Allies Hacked . | . . . Hacks Repelled . | . . . Allies | -11 -10 -10 -------- Run | Yrd Mat Sub Total Allies . | . . . Largest Group . | . . . Highest-Rated Group . | . . . Highest-Rated Ally . | . . . Total Orders . | . . . Ally Attacks . | . . . Total Damage . | . . . Kills . | . . . Allies Corrupted . | . . . Allies Melted . | . . . Intel | -11 -10 -10 ------- Run | Yrd Mat Sub Active Infowar (turns) 909 | 72 837 . Terrain 909 | 72 837 . Robot Analysis Total 1 | . 1 . Derelict Logs Recovered 1 | . . 1 Drone Launches . | . . . Drone Recoveries . | . . . Exploration | -11 -10 -10 ------------- Run | Yrd Mat Sub Turns Passed 3006 | 171 1464 1371 Spaces Moved 1633 | 99 844 690 Core 5 | 5 . . Treads . | . . . Legs . | . . . Wheels 1628 | 94 844 690 Hover . | . . . Flight . | . . . Fastest Speed 50 | 50 95 110 Average Speed 116 | 89 124 110 Slowest Speed 155 | 95 155 110 Overloaded Moves . | . . . Propulsion Burnouts . | . . . Robots Hopped . | . . . Potential Cave-ins . | . . . Cave-ins Triggered . | . . . Exploration Rate (%) 47 | 4 99 39 Regions Visited 2 Branch Regions 1 Pre-discovered Areas . | . . . Known Exits Taken . | . . . Unknown Exits Taken 2 | 1 1 . Scrap Searched . | . . . Spaces Dug 9 | . . 9 Terrain Destroyed 52 | . 26 26 Melee . | . . . Projectile 2 | . . 2 AOE 50 | . 26 24 Terrain Rammed . | . . . Walls Destroyed . | . . . Machines Disabled . | . . . Actions | -11 -10 -10 --------- Run | Yrd Mat Sub Total 2118 | 137 1073 908 Wait 114 | 5 69 40 Move 1631 | 98 843 690 Hop . | . . . Pick Up 35 | 7 26 2 Fast Attach 14 | 7 7 . Attach 6 | . 4 2 Detach 3 | . 3 . Swap 16 | . 6 10 Drop 18 | . 17 1 Fire 281 | 20 98 163 Melee . | . . . Ram . | . . . Kick . | . . . Crush . | . . . Escape Stasis . | . . . Rewire . | . . . Trap . | . . . Miscellaneous . | . . . Route ------- -11/Scrapyard -10/Materials (discovered 6 exits: [*Mat x3] / [*Min x2] / [*Sub]) -10/Subcaves (discovered 1 exit: [*Mat]) History --------- Turn | Location | Event 27 | -11/Scrapyard | Discovered new exit (range 15) 172 | -11/Scrapyard | Entered Materials 317 | -10/Materials | Build established: Mutant 436 | -10/Materials | Core integrity fell below 50% 473 | -10/Materials | Lost 5 parts (2p2n1w) 747 | -10/Materials | Discovered new exit (range 7) 754 | -10/Materials | Discovered new exit (range 16) 912 | -10/Materials | Discovered new exit (range 13) 960 | -10/Materials | Build established: Scavenger-Mutant 1100 | -10/Materials | Repaired Assault Rifle 1127 | -10/Materials | Repaired Grenade Launcher 1138 | -10/Materials | Discovered new exit (range 15) 1330 | -10/Materials | Build established: Mutant 1405 | -10/Materials | Discovered new exit (range 16) 1484 | -10/Materials | Discovered new exit (range 14) 1506 | -10/Materials | Core integrity fell below 20% 1636 | -10/Materials | Entered Subcaves 2832 | -10/Subcaves | Discovered new exit (range 12) 2857 | -10/Subcaves | Learned Materials garrison access intel 3007 | -10/Subcaves | Destroyed by 1I-EKL(R) with Subdweller Machine Gun Last Messages --------------- 02542_ 97-P0M(u) destroyed. 02549_ Acquired 13 matter. 02558_ L2-IRY(R) angrily emerges from the Twisted Machinery. 02558_ L2-IRY(R): "OHNO!" 02577_ Lgt. Ion Engine destroyed. 02579_ Lgt. Armor Plating destroyed. 02581_ L2-IRY(R) destroyed. 02590_ Acquired 55 matter. 02832_ EXIT=FOUND 02857_ Acquired derelict log, extracted data. Data stored: Materials garrison access intel. 02862_ Acquired 29 matter. 02875_ Acquired Wheel. 02889_ Acquired 53 matter. 02891_ Acquired 8 matter. 02977_ DY-X1I(R) destroyed. 02986_ Acquired 4 matter. 03006_ 1I-EKL(R) affixes Scrap Shield Fragment to Scrap Shield. Map ----- +----------------------------------------------------+ | ?????????????????????????????????????????????????? | | ?????????????????????????????????????????????????? | | ?????????????????????????????????????????????????? | | ?????????????????????????????????????????????????? | | ????????????????????###??????????????????????????? | | ???????????????????# ???????????????????????? | | ??????????????????# ???????????????????????? | | ?????????????????# #???????????????????????? | | ???????????????## ##??????????????????????? | | ???????????????# ???????????????????????? | | ???????????????# ???????????????????????? | | ???????????????? # ????????????????????????? | | ???##??????????? # ?????????????????????????? | | ### ##??????????? # ??????????????????????????? | | #????????#### ???????????????????????????? | | ########?# #???????????????????????????? | | ### ##?# #???????????????????????????? | | #### #??# #???????????????????????????? | | ##?# ##??# #######?????????????????????? | | #??# ##?# # # ##????????????????????? | | ##?# ### #????????????????????? | | #?## ## " =! #????????????????????? | | ##?## "#### #%& #????????????????????? | | #?## "##??###R ##????????????????????? | | ### ##???## ##""" ?????????????? | | # ## #????#" @ #??????????????????? | | ## ## ##???# " #??????????????????? | | ?# ### ##??## ]###??????????????????? | | ?# ## #???#### #????????????????????? | | ?## ## #??????##????????????????????? | | ??# #### #???????????????????????????? | | ??## #??? ##???????????????????????????? | | ???# ## #?? ###????????????????????????????? | | ???# ### #?# #??????????????????????????????? | | ???# ##?## ##??##??????????????????????????????? | | ???####???####???????????????????????????????????? | | ?????????????????????????????????????????????????? | | ?????????????????????????????????????????????????? | | ?????????????????????????????????????????????????? | | ?????????????????????????????????????????????????? | | ?????????????????????????????????????????????????? | | ?????????????????????????????????????????????????? | | ?????????????????????????????????????????????????? | | ?????????????????????????????????????????????????? | | ?????????????????????????????????????????????????? | | ?????????????????????????????????????????????????? | | ?????????????????????????????????????????????????? | | ?????????????????????????????????????????????????? | | ?????????????????????????????????????????????????? | | ?????????????????????????????????????????????????? | +----------------------------------------------------+ Best States ------------- Heat Dissipation 25 Energy Generation 10 Energy Capacity 250 Matter Stores 300 Matter Capacity 300 Sight Range 16 Terrain Scan Range 16 Terrain Scan Density 10 Armor Coverage 150 Evasion (%) 44 Targeting Accuracy 6 Item Schematics ----------------- None Robot Schematics ------------------ None Fabricated ------------ Nothing Repaired ---------- Assault Rifle | 18% | -10/Materials Grenade Launcher | 36% | -10/Materials Alien Tech Used ----------------- None Achievements -------------- None Challenges ------------ None Game ------ Seed AntimatterMappingAmplifier Manual? 0 Play Time 00:21:10 Cumulative 346.1 hours Start 2025.08.25 @ 14:28:36 End 2025.08.25 @ 15:39:00 Sessions 1 Manual Loads 0 Difficulty Rogue Special Mode None Game No. 294 Rogue 294 Adventurer 0 Explorer 0 Win Type - Total 2 Types 2/0/0/0/0/0/0/0/0/0 Lore% 75 Gallery% 68 Achievement% 53 Wizard Run 0 Options --------- Layout 2 ASCII 1 Keyboard 1 Movement Numpad Keybinds 0 Fullscreen 2 Font 32/TamsynBold Map View 50x44 Zoom Use 0% Tactical HUD 1 Map Filters NONE Filters NONE Steam 1 RUN: e7f26b3c-af1f-42e1-a286-2fd648ec480b